bitfinex-derivatives/quotes_ETHF0:USTF0_20250607
["timestamp","ask_amount","ask_price","bid_price","bid_amount"]
[1749286063471,0.80406,2485.9,2485.8,5.99282482]
[1749286063673,0.80404,2486.0,2485.8,6.79691482]
[1749286063872,0.80405,2485.9,2485.8,5.99282482]
[1749286065574,3.2078,2486.1,2485.8,5.99282482]
[1749286065575,0.80405,2486.0,2485.8,6.79692482]
[1749286065773,3.2078,2486.1,2485.8,5.99282482]
[1749286065972,0.80405,2485.9,2485.8,5.99282482]
[1749286067777,0.00602482,2486.3,2485.8,5.99282482]
[1749286068076,0.80397,2486.2,2486.0,0.804]
[1749286068277,0.00602482,2486.3,2486.0,0.06891172]
[1749286068470,0.80397,2486.2,2486.1,2.0219]
[1749286069672,0.80397,2486.2,2486.1,0.6761]
[1749286070072,1.48787,2486.2,2486.1,0.6761]
[1749286071573,0.80399,2486.1,2486.0,4.671]
[1749286074580,0.80402,2486.0,2485.9,5.3317]
[1749286086484,0.80402,2486.0,2485.9,5.40061172]
[1749286087382,0.80402,2486.0,2485.9,5.3317]
[1749286089086,0.80406,2485.9,2485.8,0.00602482]
[1749286089790,1.96025676,2485.9,2485.8,0.00602482]
[1749286090181,1.15619676,2485.9,2485.8,0.00602482]
[1749286090387,1.15619676,2485.9,2485.8,0.81011482]
[1749286090589,1.15619676,2485.9,2485.8,2.74521482]
[1749286090788,0.80401,2486.1,2485.9,0.80404]
[1749286091094,1.15561986,2486.0,2485.8,2.74519482]
[1749286091287,0.80401,2486.1,2485.8,2.74519482]
[1749286091493,1.15564546,2486.0,2485.9,0.87295172]
[1749286095895,0.00602482,2486.3,2486.2,0.80396]
[1749286096095,1.1615772,2486.3,2486.2,0.80396]
[1749286096794,1.9655072,2486.3,2486.2,0.80396]
[1749286097092,1.9655072,2486.3,2486.1,0.80398]
[1749286097294,1.15555238,2486.2,2486.1,0.80399]
[1749286097590,0.80995482,2486.3,2486.1,0.80399]
[1749286098299,0.00602482,2486.3,2486.2,0.80396]
[1749286098489,1.1616943,2486.3,2486.2,0.80396]
[1749286099204,1.9656243,2486.3,2486.2,0.80396]
[1749286099700,0.00602482,2486.3,2486.2,0.80396]
[1749286100398,0.00602482,2486.3,2486.2,6.13826]
[1749286100600,0.00602482,2486.3,2486.2,6.20717172]
[1749286102086,0.00602482,2486.3,2486.2,11.20717172]
[1749286102694,0.00602482,2486.3,2486.2,12.50977172]
[1749286103200,0.00602482,2486.3,2486.2,15.71757172]
[1749286105504,0.00602482,2486.3,2486.2,10.71757172]
[1749286105690,0.00602482,2486.3,2486.2,10.64866]
[1749286106593,0.00602482,2486.3,2486.2,10.71757172]
[1749286109704,0.00602482,2486.3,2486.2,10.64866]
[1749286110697,0.00602482,2486.3,2486.2,10.71757172]
[1749286117105,0.80995482,2486.3,2486.2,4.72291172]
[1749286117406,4.01775482,2486.3,2486.2,0.06891172]
[1749286117906,0.804,2486.1,2485.9,1.45264]
[1749286118103,0.804,2486.1,2485.9,1.45265]
[1749286118304,2.81828,2486.2,2485.9,1.45265]
[1749286118506,2.81828,2486.2,2485.9,0.6486]
[1749286118711,0.804,2486.1,2485.9,1.45264]
[1749286119508,0.80402,2486.0,2485.9,0.6486]
[1749286119698,1.3193,2486.1,2485.9,4.668]
[1749286119899,1.9709,2486.1,2485.9,4.668]
[1749286120099,0.80404,2486.0,2485.9,4.668]
[1749286120399,2.20104,2486.0,2485.9,4.668]
[1749286121698,1.397,2486.0,2485.9,4.668]
[1749286121907,1.397,2486.0,2485.9,5.47206]
[1749286122107,1.4556,2486.1,2485.9,5.47206]
[1749286122507,2.8526,2486.1,2485.9,5.47206]
[1749286123708,0.6516,2486.1,2486.0,0.80402]
[1749286123912,0.695,2486.2,2486.1,0.80399]
[1749286125910,0.695,2486.2,2486.1,5.47199]
[1749286127909,1.49896,2486.2,2486.1,5.47199]
[1749286130417,1.49896,2486.2,2486.1,4.668]
[1749286130617,0.695,2486.2,2486.1,5.47199]
[1749286130811,1.49896,2486.2,2486.1,5.47199]
[1749286131514,1.49896,2486.2,2486.1,4.668]
[1749286132118,0.695,2486.2,2486.1,5.47199]
[1749286132718,0.00602482,2486.3,2486.2,0.80396]
[1749286132921,0.00602482,2486.3,2486.2,1.46546]
[1749286138922,0.00602482,2486.3,2486.2,2.86356]
[1749286140626,4.01153,2486.9,2486.4,2.00974]
[1749286140829,3.2078,2486.9,2486.8,0.80377]
[1749286141523,4.01153,2486.9,2486.7,0.80379]
[1749286142721,0.80373,2486.9,2486.7,0.80378]
[1749286143927,2.16604482,2487.0,2486.8,0.80375]
[1749286144232,0.80373,2486.9,2486.7,0.80378]
[1749286144432,2.16604482,2487.0,2486.7,0.80378]
[1749286144927,2.16604482,2487.0,2486.8,0.80376]
[1749286145128,2.16604482,2487.0,2486.8,0.80377]
[1749286147524,0.80374,2486.9,2486.5,6.015]
[1749286147725,3.2078,2486.9,2486.5,1.347]
[1749286147929,0.8038,2486.7,2486.6,5.47181]
[1749286148332,0.6463,2486.7,2486.6,5.47181]
[1749286148531,1.4501,2486.7,2486.6,5.47181]
[1749286148723,2.799,2486.7,2486.6,5.47181]
[1749286148926,1.9952,2486.7,2486.6,5.47181]
[1749286150332,1.9952,2486.7,2486.6,0.80381]
[1749286150631,1.9952,2486.7,2486.6,5.46081]
[1749286151733,1.9952,2486.7,2486.6,0.80381]
[1749286151924,1.9952,2486.7,2486.6,5.46081]
[1749286156831,0.6463,2486.7,2486.6,5.46081]
[1749286159736,2.12365,2486.9,2486.6,5.46081]
[1749286159937,0.67002482,2487.0,2486.6,4.657]
[1749286160135,1.47372482,2487.0,2486.8,0.80375]
[1749286163142,0.80376,2486.8,2486.7,0.80377]
[1749286163340,0.80376,2486.9,2486.7,0.80377]
[1749286163737,0.80376,2486.8,2486.6,6.86442]
[1749286164037,0.80379,2486.8,2486.6,5.46082]
[1749286164242,3.2078,2486.8,2486.6,4.657]
[1749286164443,0.80383,2486.6,2486.5,0.6883]
[1749286164738,0.80396,2486.2,2486.1,7.8648]
[1749286164944,0.80396,2486.2,2486.1,4.657]
[1749286174350,0.80395,2486.3,2486.1,5.46099]
[1749286174551,0.80395,2486.3,2486.1,5.52990172]
[1749286174757,0.80395,2486.3,2486.2,0.6461]
[1749286175051,4.01171,2486.4,2486.2,2.14825]
[1749286175253,4.01171,2486.4,2486.2,3.47505]
[1749286175859,0.80391,2486.4,2486.2,3.47505]
[1749286176156,0.80393,2486.3,2486.2,3.47505]
[1749286176957,0.80392,2486.4,2486.2,2.6711]
[1749286177350,0.80392,2486.4,2486.2,3.47504]
[1749286177656,0.80388,2486.5,2486.3,0.80393]
[1749286177861,0.80391,2486.4,2486.2,2.6711]
[1749286178054,0.80391,2486.4,2486.2,3.47504]
[1749286180763,0.80388,2486.5,2486.3,0.80392]
[1749286180958,3.2078,2486.7,2486.3,0.80392]
[1749286181163,0.80389,2486.5,2486.3,0.80392]
[1749286181360,0.8039,2486.4,2486.2,2.6711]
[1749286182258,0.80388,2486.5,2486.3,0.80391]
[1749286182458,3.2078,2486.7,2486.4,4.65]
[1749286182658,0.80384,2486.6,2486.5,0.6905]
[1749286183658,0.80383,2486.6,2486.5,1.49435]
[1749286184561,0.80382,2486.7,2486.5,1.49435]
[1749286184761,0.80382,2486.7,2486.5,2.80485]
[1749286184959,0.80383,2486.6,2486.5,2.80485]
[1749286185166,0.80383,2486.6,2486.5,2.001]
[1749286185561,0.80383,2486.6,2486.5,0.6905]
[1749286186065,0.80386,2486.5,2486.4,4.65]
[1749286187368,1.3548,2486.7,2486.3,5.2862]
[1749286187369,0.80389,2486.4,2486.3,5.2862]
[1749286188866,3.2078,2486.6,2486.3,5.2862]
[1749286189070,0.80388,2486.5,2486.3,6.09012]
[1749286191172,3.2078,2486.6,2486.3,6.09012]
[1749286191672,3.2078,2486.6,2486.3,7.38782]
[1749286192272,0.80388,2486.5,2486.3,7.38782]
[1749286194372,0.80389,2486.4,2486.3,6.5839]
[1749286195376,0.80389,2486.4,2486.3,7.38784]
[1749286195570,0.80388,2486.5,2486.3,7.38784]
[1749286195770,0.80386,2486.5,2486.3,7.38784]
[1749286196075,0.8039,2486.4,2486.3,5.2862]
[1749286196277,0.80388,2486.5,2486.3,6.09011]
[1749286196777,0.80389,2486.4,2486.3,6.09011]
[1749286196977,0.80389,2486.4,2486.3,5.2862]
[1749286197178,0.80389,2486.4,2486.3,6.09013]
[1749286197480,1.44458,2486.5,2486.3,6.09013]
[1749286197868,0.80388,2486.5,2486.3,6.09013]
[1749286198073,0.80388,2486.5,2486.3,7.44033]
[1749286198372,0.80385,2486.6,2486.4,0.80388]
[1749286198571,0.80385,2486.6,2486.4,2.15408]
[1749286199680,0.80381,2486.7,2486.5,0.80384]
[1749286199881,0.80379,2486.8,2486.6,1.46673]
[1749286200076,1.15616642,2486.7,2486.6,1.46673]
[1749286200382,1.15616642,2486.7,2486.6,0.6629]
[1749286200578,1.15616642,2486.7,2486.6,1.46673]
[1749286200783,0.69862482,2487.0,2486.7,0.80377]
[1749286200984,1.96006445,2486.9,2486.7,0.80377]
[1749286201276,0.80373,2486.9,2486.6,6.11671]
[1749286201479,0.80373,2486.9,2486.7,0.80379]
[1749286202380,0.80376,2486.9,2486.7,0.80381]
[1749286202580,0.80376,2486.9,2486.6,6.11671]
[1749286202777,0.80377,2486.8,2486.6,6.11671]
[1749286203980,0.8038,2486.7,2486.6,5.3129]
[1749286204679,3.2078,2486.9,2486.6,5.3129]
[1749286204885,0.80379,2486.8,2486.6,5.3129]
[1749286205585,0.80379,2486.8,2486.6,6.11673]
[1749286205791,3.2078,2486.9,2486.6,6.11673]
[1749286206084,0.80379,2486.8,2486.6,6.11673]
[1749286206683,0.80376,2486.8,2486.6,6.11673]
[1749286207889,3.2078,2486.9,2486.2,0.6982]
[1749286208187,4.01167,2486.5,2486.3,0.6713]
[1749286208486,0.80385,2486.6,2486.3,6.12421]
[1749286208681,1.46923,2486.7,2486.4,0.80388]
[1749286209290,0.6654,2486.7,2486.3,7.47081]
[1749286209484,0.6654,2486.7,2486.3,5.3203]
[1749286209683,0.8039,2486.4,2486.3,5.3203]
[1749286210186,0.80388,2486.5,2486.3,5.3203]
[1749286210881,0.80388,2486.5,2486.3,6.12422]
[1749286211483,0.80388,2486.5,2486.3,5.3203]
[1749286211887,0.80385,2486.6,2486.3,5.3203]
[1749286212189,0.80385,2486.6,2486.3,6.12423]
[1749286215282,1.3158,2486.7,2486.5,0.80385]
[1749286215492,1.46922,2486.7,2486.5,0.80386]
[1749286215689,1.46922,2486.7,2486.6,0.667]
[1749286215889,2.65655196,2486.7,2486.6,0.667]
[1749286216488,1.99115196,2486.7,2486.6,0.667]
[1749286217685,1.18733196,2486.7,2486.6,1.47083]
[1749286217984,3.2078,2486.8,2486.7,0.8038]
[1749286218889,3.2078,2486.8,2486.7,0.6834]
[1749286219592,0.80374,2486.9,2486.7,0.6834]
[1749286221089,0.80374,2486.9,2486.7,0.75231172]
[1749286222185,0.80374,2486.9,2486.7,1.4872]
[1749286223190,0.80374,2486.9,2486.7,0.6834]
[1749286223393,0.80377,2486.8,2486.7,1.48719]
[1749286223890,0.80376,2486.9,2486.7,1.48719]
[1749286225998,0.80377,2486.8,2486.7,1.48719]
[1749286227599,0.00602482,2487.0,2486.7,1.48719]
[1749286227896,0.80373,2486.9,2486.7,1.48719]
[1749286228702,0.80373,2486.9,2486.7,1.48718]
[1749286229499,0.80377,2486.8,2486.7,1.48718]
[1749286230398,0.80377,2486.8,2486.7,0.6834]
[1749286230808,0.80377,2486.8,2486.7,1.4872]
[1749286231211,0.80376,2486.9,2486.8,0.80377]
[1749286231409,0.80376,2486.9,2486.7,1.48717]
[1749286231703,0.80376,2486.9,2486.6,5.33]
[1749286231704,0.80377,2486.8,2486.6,0.667]
[1749286231899,1.47237,2486.8,2486.6,6.13282]
[1749286232307,1.47237,2486.8,2486.6,5.329]
[1749286232508,1.47237,2486.8,2486.6,6.13282]
[1749286236008,1.47237,2486.8,2486.7,0.8038]
[1749286236210,0.6686,2486.8,2486.7,0.8038]
[1749286236409,3.2078,2486.9,2486.7,0.8038]
[1749286236410,4.01155,2486.9,2486.7,0.8038]
[1749286237316,4.01155,2486.9,2486.7,0.87271172]
[1749286237517,0.80377,2486.8,2486.7,0.87271172]
[1749286238317,4.01155,2486.9,2486.7,0.8038]
[1749286238618,4.01156,2486.9,2486.7,0.8038]
[1749286240116,0.80377,2486.8,2486.6,5.329]
[1749286240617,4.01156,2486.9,2486.7,0.8038]
[1749286240819,0.80377,2486.8,2486.6,6.13281]
[1749286241117,0.80377,2486.8,2486.7,0.8038]
[1749286241518,4.01155,2486.9,2486.7,0.8038]
[1749286245422,1.19272441,2486.8,2486.7,0.8038]
[1749286246119,4.01155,2486.9,2486.7,0.8038]
[1749286246619,1.19265588,2486.8,2486.7,0.8038]
[1749286246820,3.2078,2486.9,2486.8,0.80377]
[1749286247020,4.4004463,2486.9,2486.8,0.80377]
[1749286247320,1.1926463,2486.9,2486.8,0.80377]
[1749286248024,1.9963763,2486.9,2486.8,0.80377]
[1749286249921,1.9963763,2486.9,2486.6,5.329]
[1749286250224,1.1926463,2486.8,2486.7,0.8038]
[1749286254032,1.9964163,2486.8,2486.7,0.8038]
[1749286254230,1.1926463,2486.8,2486.7,0.8038]
[1749286256133,1.9964263,2486.8,2486.6,6.13281]
[1749286256430,0.80378,2486.8,2486.7,4.648]
[1749286256628,2.02765861,2486.8,2486.7,4.648]
[1749286256826,2.02765861,2486.8,2486.7,5.4518]
[1749286259034,1.22387861,2486.8,2486.7,5.4518]
[1749286259234,2.02764861,2486.8,2486.7,5.4518]
[1749286260132,1.22387861,2486.8,2486.7,5.4518]
[1749286263535,1.29279033,2486.8,2486.7,5.4518]
[1749286264239,2.09656033,2486.8,2486.7,5.4518]
[1749286264738,2.02764861,2486.8,2486.7,5.4518]
[1749286264939,2.02764861,2486.8,2486.7,0.8038]
[1749286265137,2.02764861,2486.8,2486.7,5.4518]
[1749286265640,1.22387861,2486.8,2486.7,5.4518]
[1749286266634,2.02764861,2486.8,2486.7,5.4518]
[1749286267131,1.22387861,2486.8,2486.7,5.4518]
[1749286267332,0.80377,2486.8,2486.7,5.4518]
[1749286267636,2.02764861,2486.8,2486.7,5.4518]
[1749286268538,1.22387861,2486.8,2486.7,5.4518]
[1749286268739,2.02764861,2486.8,2486.7,5.4518]
[1749286268939,1.22387861,2486.8,2486.7,5.4518]
[1749286270242,1.22387861,2486.8,2486.6,0.667]
[1749286270438,0.80378,2486.8,2486.7,5.45179]
[1749286270631,2.02789077,2486.8,2486.7,5.45179]
[1749286271240,1.22411077,2486.8,2486.7,5.45179]
[1749286271942,2.02788077,2486.8,2486.7,5.45179]
[1749286272635,1.22411077,2486.8,2486.7,5.45179]
[1749286272841,2.02788077,2486.8,2486.7,5.45179]
[1749286273142,2.02788077,2486.8,2486.7,4.648]
[1749286273443,1.22411077,2486.8,2486.7,5.4518]
[1749286274242,2.02788077,2486.8,2486.7,5.4518]
[1749286274541,2.02788077,2486.8,2486.7,4.648]
[1749286275345,2.02788077,2486.8,2486.7,5.4518]
[1749286275843,1.22411077,2486.8,2486.7,5.4518]
[1749286276844,2.02788077,2486.8,2486.7,5.4518]
[1749286277348,1.22411077,2486.8,2486.7,5.4518]
[1749286278048,2.02788077,2486.8,2486.7,5.4518]
[1749286278647,1.22411077,2486.8,2486.7,5.4518]
[1749286279948,1.22424772,2486.8,2486.7,5.4518]
[1749286281651,2.02801772,2486.8,2486.7,0.8038]
[1749286281946,1.22424772,2486.8,2486.7,5.4488]
[1749286283549,2.02801772,2486.8,2486.7,5.4488]
[1749286283850,1.22424772,2486.8,2486.7,5.4488]
[1749286284446,2.02801772,2486.8,2486.7,4.645]
[1749286285051,1.22424772,2486.8,2486.7,5.4488]
[1749286285854,1.22424772,2486.8,2486.7,5.51771172]
[1749286286358,2.02801772,2486.8,2486.7,5.51771172]
[1749286286854,2.02779104,2486.8,2486.7,5.4488]
[1749286287554,1.22402104,2486.8,2486.7,5.4488]
[1749286289154,2.02779104,2486.8,2486.7,5.4488]
[1749286289957,1.22402104,2486.8,2486.7,5.4488]
[1749286290257,2.02779104,2486.8,2486.7,4.645]
[1749286290454,2.02779104,2486.8,2486.6,0.667]
[1749286290455,0.8038,2486.7,2486.6,0.667]
[1749286290654,2.69673719,2486.7,2486.6,4.645]
[1749286290855,4.70783719,2486.7,2486.6,4.645]
[1749286292551,1.22403719,2486.7,2486.6,5.44883]
[1749286294862,1.48864,2486.9,2486.7,0.80378]
[1749286295061,1.48864,2486.9,2486.7,1.46628]
[1749286295062,1.2231347,2486.8,2486.7,1.46628]
[1749286295567,2.0269047,2486.8,2486.7,1.46628]
[1749286296064,2.0269047,2486.8,2486.7,0.6625]
[1749286297462,2.0269047,2486.8,2486.7,1.4663]
[1749286298658,2.0269047,2486.8,2486.7,0.6625]
[1749286300564,2.0269047,2486.8,2486.7,1.4663]
[1749286300863,2.0269047,2486.8,2486.7,0.6625]
[1749286301058,2.0269047,2486.8,2486.7,1.4663]
[1749286301556,2.0269047,2486.8,2486.7,0.6625]
[1749286303062,2.0269047,2486.8,2486.7,1.4663]
[1749286303255,2.0269047,2486.8,2486.7,0.6625]
[1749286305364,2.0269047,2486.8,2486.7,1.4663]
[1749286310263,2.0269047,2486.8,2486.7,0.6625]
[1749286312769,2.0269047,2486.8,2486.7,1.4663]
[1749286313269,2.0269047,2486.8,2486.7,1.53521172]
[1749286314170,2.0269047,2486.8,2486.7,1.4663]
[1749286314770,2.0269047,2486.8,2486.7,0.6625]
[1749286315264,1.2231347,2486.8,2486.7,1.53521172]
[1749286315669,1.2231347,2486.8,2486.7,3.50631172]
[1749286317272,2.0269047,2486.8,2486.7,3.50631172]
[1749286318071,1.2231347,2486.8,2486.7,3.50631172]
[1749286318271,1.2231347,2486.8,2486.7,3.4374]
[1749286318573,2.0269047,2486.8,2486.7,1.3389]
[1749286319371,2.0269047,2486.8,2486.7,2.1427]
[1749286319874,1.2231347,2486.8,2486.7,2.1427]
[1749286320372,2.0269047,2486.8,2486.7,6.7867]
[1749286321671,2.0269047,2486.8,2486.7,4.644]
[1749286321871,2.0269047,2486.8,2486.7,5.4478]
[1749286322972,2.0269047,2486.8,2486.7,4.644]
[1749286323878,2.0269047,2486.8,2486.7,5.4478]
[1749286324082,2.0269047,2486.8,2486.7,4.644]
[1749286325093,0.80389,2486.4,2486.3,0.689]
[1749286325389,0.80389,2486.4,2486.3,4.644]
[1749286325782,1.46509,2486.4,2486.3,4.644]
[1749286326889,1.46509,2486.4,2486.2,1.44934]
[1749286327088,1.46509,2486.4,2486.3,4.645]
[1749286331888,1.46509,2486.4,2486.3,5.44893]
[1749286332687,1.46509,2486.4,2486.3,4.645]
[1749286333293,2.68695961,2486.4,2486.3,4.645]
[1749286333594,0.80393,2486.3,2486.2,5.2904]
[1749286333795,0.6612,2486.4,2486.1,3.2078]
[1749286334097,1.46512,2486.4,2486.2,5.44894]
[1749286334394,1.46512,2486.4,2486.2,5.44895]
[1749286334787,0.6612,2486.4,2486.3,0.80393]
[1749286334989,1.88591213,2486.4,2486.3,0.80393]
[1749286335193,0.6612,2486.4,2486.3,0.80393]
[1749286336394,1.46509,2486.4,2486.3,0.80393]
[1749286336797,0.6612,2486.4,2486.3,0.80393]
[1749286338199,4.01168,2486.5,2486.4,0.80389]
[1749286338391,5.2359311,2486.5,2486.4,0.80389]
[1749286339598,0.80389,2486.4,2486.3,0.87281172]
[1749286339794,0.80389,2486.4,2486.3,0.06891172]
[1749286340101,2.10319,2486.4,2486.3,0.06891172]
[1749286340588,0.80393,2486.3,2486.2,4.645]
[1749286340793,1.45523,2486.3,2486.2,4.645]
[1749286341592,1.45523,2486.3,2486.2,5.44896]
[1749286341798,1.45523,2486.3,2486.2,4.645]
[1749286341997,1.45523,2486.3,2486.2,5.44896]
[1749286342397,1.45523,2486.3,2486.2,4.645]
[1749286343300,1.45523,2486.3,2486.2,0.80396]
[1749286343598,0.80396,2486.2,2486.1,4.01177]
[1749286344193,0.80396,2486.2,2486.1,3.2078]
[1749286344394,0.80399,2486.1,2486.0,5.448]
[1749286344801,0.80398,2486.2,2486.1,0.80399]
[1749286346803,4.43119728,2486.2,2485.9,6.0357]
[1749286347104,0.80401,2486.1,2486.0,0.80402]
[1749286347503,2.02738797,2486.1,2486.0,0.80402]
[1749286348205,0.80401,2486.1,2486.0,0.80402]
[1749286348603,4.01178,2486.2,2486.1,0.80399]
[1749286348905,5.2353801,2486.2,2486.1,0.80399]
[1749286349103,4.01178,2486.2,2486.1,0.80399]
[1749286349596,0.804,2486.1,2486.0,0.804]
[1749286352902,0.6513,2486.3,2485.9,7.3282]
[1749286353107,0.80402,2486.1,2486.0,0.80402]
[1749286353302,2.03335697,2486.1,2486.0,0.80402]
[1749286353502,0.80402,2486.1,2486.0,0.80402]
[1749286354404,2.03357485,2486.1,2486.0,0.80402]
[1749286354905,2.03357485,2486.1,2486.0,0.87293172]
[1749286355198,2.03357485,2486.1,2486.0,0.06891172]
[1749286356504,2.03357485,2486.1,2486.0,0.87293172]
[1749286358210,2.03357485,2486.1,2486.0,0.06891172]
[1749286359508,2.03357485,2486.1,2486.0,0.87293172]
[1749286359814,2.03357485,2486.1,2486.0,0.80402]
[1749286360711,0.80402,2486.0,2485.9,8.13225]
[1749286360913,0.80402,2486.0,2485.9,6.83975]
[1749286361113,0.80402,2486.0,2485.9,6.0367]
[1749286362013,0.80402,2486.0,2485.9,6.84076]
[1749286362513,0.80402,2486.1,2486.0,0.80402]
[1749286362909,2.0338075,2486.1,2486.0,0.80402]
[1749286363110,1.2297875,2486.1,2485.9,6.0367]
[1749286363312,0.80403,2486.1,2486.0,0.80402]
[1749286363510,2.03388001,2486.1,2486.0,0.80402]
[1749286363914,0.80402,2486.0,2485.9,6.84073]
[1749286366210,2.03396238,2486.0,2485.9,6.84073]
[1749286366419,2.0340271,2486.0,2485.9,6.84073]
[1749286367214,2.0340271,2486.0,2485.9,6.0367]
[1749286367415,2.0340271,2486.0,2485.9,5.335]
[1749286367910,2.6723271,2486.0,2485.9,5.335]
[1749286368112,2.6723271,2486.0,2485.9,0.69]
[1749286369108,2.6723271,2486.0,2485.9,1.49406]
[1749286370123,2.6723271,2486.0,2485.9,0.69]
[1749286371020,0.80406,2485.9,2485.8,5.45410482]
[1749286371317,0.80406,2485.9,2485.8,0.00602482]
[1749286371520,2.03624966,2485.9,2485.8,0.00602482]
[1749286379025,5.21425966,2485.9,2485.4,6.0075]
[1749286379225,0.80419,2485.5,2485.4,6.0075]
[1749286379618,0.80419,2485.5,2485.4,6.81172]
[1749286380426,5.24645381,2485.5,2485.4,0.67]
[1749286380617,5.24645381,2485.5,2485.4,5.314]
[1749286381124,2.03865381,2485.5,2485.4,5.314]
[1749286383622,0.80417,2485.6,2485.4,6.11822]
[1749286384518,0.80418,2485.5,2485.4,5.314]
[1749286386528,0.80417,2485.6,2485.4,5.314]
[1749286386726,0.81014482,2485.7,2485.4,8.5218]
[1749286387026,0.00602482,2485.7,2485.6,0.80415]
[1749286387218,0.00602482,2485.7,2485.6,2.20645]
[1749286390531,0.81014482,2485.7,2485.6,1.4023]
[1749286390729,0.00602482,2485.7,2485.6,5.44815]
[1749286390927,0.80415,2485.6,2485.5,5.3297]
[1749286391132,0.81016482,2485.7,2485.5,6.13388]
[1749286391429,0.80415,2485.6,2485.5,4.644]
[1749286391628,1.50005,2485.6,2485.5,4.644]
[1749286392629,0.80419,2485.5,2485.4,6.11822]
[1749286392830,0.80419,2485.5,2485.4,0.67]
[1749286393128,0.80425,2485.3,2485.2,0.00602482]
[1749286393338,4.01205,2485.3,2485.2,0.00602482]
[1749286393636,5.24709201,2485.3,2485.2,0.00602482]
[1749286395330,5.24709201,2485.3,2484.4,5.21911]
[1749286395331,14.08684201,2485.3,2483.8,3.2078]
[1749286395533,3.2078,2484.6,2484.0,0.6499]
[1749286395729,3.2078,2484.6,2484.1,0.6352]
[1749286395930,3.2078,2484.6,2484.5,0.80451]
[1749286396229,3.2078,2485.0,2484.9,0.80438]
[1749286396937,3.2078,2485.0,2484.8,5.4494]
[1749286397232,0.8044,2484.9,2484.6,0.80446]
[1749286398235,0.80438,2484.9,2484.6,0.80446]
[1749286398534,4.01217,2485.0,2484.4,6.7289]
[1749286398734,4.01217,2485.0,2484.7,0.80443]
[1749286399331,0.80439,2484.9,2484.7,0.80443]
[1749286399834,4.01216,2485.0,2484.8,0.80439]
[1749286400035,0.80438,2484.9,2484.5,1.2825]
[1749286400339,4.01217,2485.0,2484.7,0.80444]
[1749286401536,0.80439,2484.9,2484.7,0.80444]
[1749286402237,4.01217,2485.0,2484.7,0.80444]
[1749286402536,3.2078,2485.0,2484.8,0.8044]
[1749286403037,4.01215,2485.0,2484.8,0.8044]
[1749286403837,3.2078,2485.0,2484.8,0.8044]
[1749286404038,4.01216,2485.0,2484.8,0.8044]
[1749286404733,4.01216,2485.0,2484.7,0.80443]
[1749286404933,3.2078,2485.0,2484.8,0.8044]
[1749286405236,4.01215,2485.0,2484.8,0.8044]
[1749286405633,4.01215,2485.0,2484.7,0.80442]
[1749286405941,4.01215,2485.0,2484.8,0.80441]
[1749286406135,4.01215,2485.0,2484.7,0.80443]
[1749286406537,0.80439,2484.9,2484.7,5.50543]
[1749286407541,3.2078,2485.0,2484.7,4.701]
[1749286407736,3.2078,2485.0,2484.8,0.80439]
[1749286408338,3.2078,2485.0,2484.9,0.80438]
[1749286409048,0.80426,2485.3,2485.1,0.8043]
[1749286409238,4.70883,2485.4,2485.0,4.701]
[1749286409437,0.00602482,2485.7,2485.0,4.701]
[1749286409438,0.80416,2485.6,2485.4,0.8042]
[1749286409638,0.80418,2485.6,2485.4,0.80421]
[1749286409835,0.80419,2485.6,2485.3,5.50523]
[1749286410141,0.8042,2485.5,2485.3,5.50523]
[1749286410341,0.80418,2485.6,2485.4,0.80422]
[1749286410743,0.80416,2485.6,2485.5,0.80419]
[1749286411345,0.80416,2485.6,2485.4,0.8042]
[1749286411940,0.80418,2485.6,2485.4,0.8042]
[1749286412137,0.80418,2485.6,2485.5,0.80419]
[1749286412342,0.80416,2485.6,2485.5,0.80419]
[1749286414147,0.80416,2485.6,2485.4,0.8042]
[1749286414353,0.80416,2485.6,2485.4,1.501]
[1749286414742,0.80416,2485.6,2485.4,0.6968]
[1749286415040,0.80419,2485.5,2485.4,0.6968]
[1749286416343,3.21382482,2485.7,2485.0,3.2078]
[1749286416549,1.49313,2485.4,2485.3,4.701]
[1749286417241,0.80429,2485.2,2485.1,0.6959]
[1749286417542,0.80429,2485.2,2485.1,5.3969]
[1749286418350,0.80429,2485.2,2485.1,0.6959]
[1749286418540,0.80429,2485.2,2485.1,1.50022]
[1749286418742,0.80429,2485.2,2485.1,0.6959]
[1749286419346,0.80429,2485.2,2485.1,1.50022]
[1749286420846,4.01208,2485.3,2485.2,0.80429]
[1749286421052,0.6789,2485.5,2485.1,0.6959]
[1749286421246,0.80424,2485.4,2485.2,0.80426]
[1749286421446,0.80424,2485.4,2485.1,1.9962]
[1749286421654,3.91051172,2485.6,2485.1,0.6959]
[1749286421846,0.80429,2485.2,2485.1,5.3969]
[1749286423651,0.80429,2485.2,2485.1,0.6959]
[1749286423850,0.80435,2485.0,2484.9,0.6734]
[1749286424055,0.80435,2485.0,2484.9,6.17878]
[1749286425950,1.336,2485.2,2484.8,1.46421]
[1749286426252,0.80438,2484.9,2484.7,8.71322]
[1749286426453,0.80438,2484.9,2484.8,0.80441]
[1749286426654,0.80438,2484.9,2484.7,8.71323]
[1749286427051,2.0065,2485.2,2484.7,7.9088]
[1749286427256,0.8044,2484.9,2484.8,0.80441]
[1749286429956,0.80436,2485.0,2484.9,0.80438]
[1749286430852,0.80434,2485.1,2484.7,7.9088]
[1749286431054,0.80434,2485.1,2484.7,9.1927]
[1749286431257,0.80434,2485.1,2484.9,0.80437]
[1749286431851,3.8416,2485.3,2484.7,9.1937]
[1749286432057,0.80433,2485.1,2484.8,1.3053]
[1749286432362,0.8043,2485.2,2485.0,0.80432]
[1749286432556,0.8043,2485.2,2485.1,0.6781]